Workbook

Sheet 损益表
B1: 损益表
D3: 前期 | E3: 预算 | F3: 本期 | H3: 本期占 销售的比重 (%) | I3: 较前期 升跌 (%) | J3: 较预算 升跌 (%)
B4: 销售收入
B5: 产品/服务 1 | D5: 400 | E5: 500 | F5: 450 | H5: =IFERROR(销售收入[[#This Row],[Current Period]]/SUBTOTAL(109,销售收入[Current Period]),0) -> 100.0% | I5: =IFERROR(销售收入[[#This Row],[Current Period]]/销售收入[[#This Row],[Prior Period]]-1,0) -> 12.5% | J5: =IFERROR(销售收入[[#This Row],[Current Period]]/销售收入[[#This Row],[Budget]]-1,0) -> -10.0%
B6: 产品/服务 2 | H6: =IFERROR(销售收入[[#This Row],[Current Period]]/SUBTOTAL(109,销售收入[Current Period]),0) -> 0 | I6: =IFERROR(销售收入[[#This Row],[Current Period]]/销售收入[[#This Row],[Prior Period]]-1,0) -> 0 | J6: =IFERROR(销售收入[[#This Row],[Current Period]]/销售收入[[#This Row],[Budget]]-1,0) -> 0
B7: 产品/服务 3 | H7: =IFERROR(销售收入[[#This Row],[Current Period]]/SUBTOTAL(109,销售收入[Current Period]),0) -> 0 | I7: =IFERROR(销售收入[[#This Row],[Current Period]]/销售收入[[#This Row],[Prior Period]]-1,0) -> 0 | J7: =IFERROR(销售收入[[#This Row],[Current Period]]/销售收入[[#This Row],[Budget]]-1,0) -> 0
B8: 产品/服务 4 | H8: =IFERROR(销售收入[[#This Row],[Current Period]]/SUBTOTAL(109,销售收入[Current Period]),0) -> 0 | I8: =IFERROR(销售收入[[#This Row],[Current Period]]/销售收入[[#This Row],[Prior Period]]-1,0) -> 0 | J8: =IFERROR(销售收入[[#This Row],[Current Period]]/销售收入[[#This Row],[Budget]]-1,0) -> 0
B9: 总计 | D9: =SUBTOTAL(109,销售收入[Prior Period]) -> 400 | E9: =SUBTOTAL(109,销售收入[Budget]) -> 500 | F9: =SUBTOTAL(109,销售收入[Current Period]) -> 450 | H9: =IFERROR(销售收入[[#Totals],[Current Period]]/销售收入[[#Totals],[Current Period]],0) -> 100.0% | I9: =IFERROR(销售收入[[#Totals],[Current Period]]/销售收入[[#Totals],[Prior Period]]-1,0) -> 12.5% | J9: =IFERROR(销售收入[[#Totals],[Current Period]]/销售收入[[#Totals],[Budget]]-1,0) -> -10.0%
B11: 销售成本
B12: 产品/服务 1 | E12: 20 | F12: 30 | H12: =IFERROR(销售成本[[#This Row],[Current Period]]/SUBTOTAL(109,销售收入[Current Period]),0) -> 6.7% | I12: =IFERROR(销售成本[[#This Row],[Current Period]]/销售成本[[#This Row],[Prior Period]]-1,0) -> 0 | J12: =IFERROR(销售成本[[#This Row],[Current Period]]/销售成本[[#This Row],[Budget]]-1,0) -> 50.0%
B13: 产品/服务 2 | E13: 50 | F13: 30 | H13: =IFERROR(销售成本[[#This Row],[Current Period]]/SUBTOTAL(109,销售收入[Current Period]),0) -> 6.7% | I13: =IFERROR(销售成本[[#This Row],[Current Period]]/销售成本[[#This Row],[Prior Period]]-1,0) -> 0 | J13: =IFERROR(销售成本[[#This Row],[Current Period]]/销售成本[[#This Row],[Budget]]-1,0) -> -40.0%
B14: 产品/服务 3 | F14: 10 | H14: =IFERROR(销售成本[[#This Row],[Current Period]]/SUBTOTAL(109,销售收入[Current Period]),0) -> 2.2% | I14: =IFERROR(销售成本[[#This Row],[Current Period]]/销售成本[[#This Row],[Prior Period]]-1,0) -> 0 | J14: =IFERROR(销售成本[[#This Row],[Current Period]]/销售成本[[#This Row],[Budget]]-1,0) -> 0
B15: 产品/服务 4 | H15: =IFERROR(销售成本[[#This Row],[Current Period]]/SUBTOTAL(109,销售收入[Current Period]),0) -> 0 | I15: =IFERROR(销售成本[[#This Row],[Current Period]]/销售成本[[#This Row],[Prior Period]]-1,0) -> 0 | J15: =IFERROR(销售成本[[#This Row],[Current Period]]/销售成本[[#This Row],[Budget]]-1,0) -> 0
B16: 总计 | D16: =SUBTOTAL(109,销售成本[Prior Period]) -> 0 | E16: =SUBTOTAL(109,销售成本[Budget]) -> 70 | F16: =SUBTOTAL(109,销售成本[Current Period]) -> 70 | H16: =IFERROR(销售成本[[#Totals],[Current Period]]/SUBTOTAL(109,销售收入[Current Period]),0) -> 15.6% | I16: =IFERROR(销售成本[[#Totals],[Current Period]]/销售成本[[#Totals],[Prior Period]]-1,0) -> 0 | J16: =IFERROR(销售成本[[#Totals],[Current Period]]/销售成本[[#Totals],[Budget]]-1,0) -> 0
B18: 毛利润 | D18: =SUM(销售收入[Prior Period])-SUM(销售成本[Prior Period]) -> 400 | E18: =SUM(销售收入[Budget])-SUM(销售成本[Budget]) -> 430 | F18: =SUM(销售收入[Current Period])-SUM(销售成本[Current Period]) -> 380 | H18: =IFERROR(F18/SUBTOTAL(109,销售收入[Current Period]),0) -> 84.4% | I18: =IFERROR(F18/D18-1,0) -> -5.0% | J18: =IFERROR(F18/E18-1,0) -> -11.6%
B20: 经营支出: 销售及营销支出
B21: 广告 | E21: 220 | F21: 190 | H21: =IFERROR(销售和营销[[#This Row],[Current Period]]/SUBTOTAL(109,销售收入[Current Period]),0) -> 42.2% | I21: =IFERROR(销售和营销[[#This Row],[Current Period]]/销售和营销[[#This Row],[Prior Period]]-1,0) -> 0 | J21: =IFERROR(销售和营销[[#This Row],[Current Period]]/销售和营销[[#This Row],[Budget]]-1,0) -> -13.6%
B22: 直销 | H22: =IFERROR(销售和营销[[#This Row],[Current Period]]/SUBTOTAL(109,销售收入[Current Period]),0) -> 0 | I22: =IFERROR(销售和营销[[#This Row],[Current Period]]/销售和营销[[#This Row],[Prior Period]]-1,0) -> 0 | J22: =IFERROR(销售和营销[[#This Row],[Current Period]]/销售和营销[[#This Row],[Budget]]-1,0) -> 0
B23: 其他费用（请指定） | H23: =IFERROR(销售和营销[[#This Row],[Current Period]]/SUBTOTAL(109,销售收入[Current Period]),0) -> 0 | I23: =IFERROR(销售和营销[[#This Row],[Current Period]]/销售和营销[[#This Row],[Prior Period]]-1,0) -> 0 | J23: =IFERROR(销售和营销[[#This Row],[Current Period]]/销售和营销[[#This Row],[Budget]]-1,0) -> 0
B24: 总计 | D24: =SUBTOTAL(109,销售和营销[Prior Period]) -> 0 | E24: =SUBTOTAL(109,销售和营销[Budget]) -> 220 | F24: =SUBTOTAL(109,销售和营销[Current Period]) -> 190 | H24: =IFERROR(销售和营销[[#Totals],[Current Period]]/SUBTOTAL(109,销售收入[Current Period]),0) -> 42.2% | I24: =IFERROR(销售和营销[[#Totals],[Current Period]]/销售和营销[[#Totals],[Prior Period]]-1,0) -> 0 | J24: =IFERROR(销售和营销[[#Totals],[Current Period]]/销售和营销[[#Totals],[Budget]]-1,0) -> -13.6%
B26: 经营支出: 一般及行政支出
B27: 工资和薪金 | E27: 560 | F27: 510 | H27: =IFERROR(一般及行政支出[[#This Row],[Current Period]]/SUBTOTAL(109,销售收入[Current Period]),0) -> 113.3% | I27: =IFERROR(一般及行政支出[[#This Row],[Current Period]]/一般及行政支出[[#This Row],[Prior Period]]-1,0) -> 0 | J27: =IFERROR(一般及行政支出[[#This Row],[Current Period]]/一般及行政支出[[#This Row],[Budget]]-1,0) -> -8.9%
B28: 外包服务费 | H28: =IFERROR(一般及行政支出[[#This Row],[Current Period]]/SUBTOTAL(109,销售收入[Current Period]),0) -> 0 | I28: =IFERROR(一般及行政支出[[#This Row],[Current Period]]/一般及行政支出[[#This Row],[Prior Period]]-1,0) -> 0 | J28: =IFERROR(一般及行政支出[[#This Row],[Current Period]]/一般及行政支出[[#This Row],[Budget]]-1,0) -> 0
B29: 用品 | H29: =IFERROR(一般及行政支出[[#This Row],[Current Period]]/SUBTOTAL(109,销售收入[Current Period]),0) -> 0 | I29: =IFERROR(一般及行政支出[[#This Row],[Current Period]]/一般及行政支出[[#This Row],[Prior Period]]-1,0) -> 0 | J29: =IFERROR(一般及行政支出[[#This Row],[Current Period]]/一般及行政支出[[#This Row],[Budget]]-1,0) -> 0
B30: 餐饮娱乐费 | H30: =IFERROR(一般及行政支出[[#This Row],[Current Period]]/SUBTOTAL(109,销售收入[Current Period]),0) -> 0 | I30: =IFERROR(一般及行政支出[[#This Row],[Current Period]]/一般及行政支出[[#This Row],[Prior Period]]-1,0) -> 0 | J30: =IFERROR(一般及行政支出[[#This Row],[Current Period]]/一般及行政支出[[#This Row],[Budget]]-1,0) -> 0
B31: 租金 | H31: =IFERROR(一般及行政支出[[#This Row],[Current Period]]/SUBTOTAL(109,销售收入[Current Period]),0) -> 0 | I31: =IFERROR(一般及行政支出[[#This Row],[Current Period]]/一般及行政支出[[#This Row],[Prior Period]]-1,0) -> 0 | J31: =IFERROR(一般及行政支出[[#This Row],[Current Period]]/一般及行政支出[[#This Row],[Budget]]-1,0) -> 0
B32: 电话费 | H32: =IFERROR(一般及行政支出[[#This Row],[Current Period]]/SUBTOTAL(109,销售收入[Current Period]),0) -> 0 | I32: =IFERROR(一般及行政支出[[#This Row],[Current Period]]/一般及行政支出[[#This Row],[Prior Period]]-1,0) -> 0 | J32: =IFERROR(一般及行政支出[[#This Row],[Current Period]]/一般及行政支出[[#This Row],[Budget]]-1,0) -> 0
B33: 水电费 | H33: =IFERROR(一般及行政支出[[#This Row],[Current Period]]/SUBTOTAL(109,销售收入[Current Period]),0) -> 0 | I33: =IFERROR(一般及行政支出[[#This Row],[Current Period]]/一般及行政支出[[#This Row],[Prior Period]]-1,0) -> 0 | J33: =IFERROR(一般及行政支出[[#This Row],[Current Period]]/一般及行政支出[[#This Row],[Budget]]-1,0) -> 0
B34: 折旧 | H34: =IFERROR(一般及行政支出[[#This Row],[Current Period]]/SUBTOTAL(109,销售收入[Current Period]),0) -> 0 | I34: =IFERROR(一般及行政支出[[#This Row],[Current Period]]/一般及行政支出[[#This Row],[Prior Period]]-1,0) -> 0 | J34: =IFERROR(一般及行政支出[[#This Row],[Current Period]]/一般及行政支出[[#This Row],[Budget]]-1,0) -> 0
B35: 保险 | H35: =IFERROR(一般及行政支出[[#This Row],[Current Period]]/SUBTOTAL(109,销售收入[Current Period]),0) -> 0 | I35: =IFERROR(一般及行政支出[[#This Row],[Current Period]]/一般及行政支出[[#This Row],[Prior Period]]-1,0) -> 0 | J35: =IFERROR(一般及行政支出[[#This Row],[Current Period]]/一般及行政支出[[#This Row],[Budget]]-1,0) -> 0
B36: 修理和维护费 | H36: =IFERROR(一般及行政支出[[#This Row],[Current Period]]/SUBTOTAL(109,销售收入[Current Period]),0) -> 0 | I36: =IFERROR(一般及行政支出[[#This Row],[Current Period]]/一般及行政支出[[#This Row],[Prior Period]]-1,0) -> 0 | J36: =IFERROR(一般及行政支出[[#This Row],[Current Period]]/一般及行政支出[[#This Row],[Budget]]-1,0) -> 0
B37: 其他费用（请指定） | H37: =IFERROR(一般及行政支出[[#This Row],[Current Period]]/SUBTOTAL(109,销售收入[Current Period]),0) -> 0 | I37: =IFERROR(一般及行政支出[[#This Row],[Current Period]]/一般及行政支出[[#This Row],[Prior Period]]-1,0) -> 0 | J37: =IFERROR(一般及行政支出[[#This Row],[Current Period]]/一般及行政支出[[#This Row],[Budget]]-1,0) -> 0
B38: 总计 | D38: =SUBTOTAL(109,一般及行政支出[Prior Period]) -> 0 | E38: =SUBTOTAL(109,一般及行政支出[Budget]) -> 560 | F38: =SUBTOTAL(109,一般及行政支出[Current Period]) -> 510 | H38: =IFERROR(一般及行政支出[[#Totals],[Current Period]]/SUBTOTAL(109,销售收入[Current Period]),0) -> 113.3% | I38: =IFERROR(一般及行政支出[[#Totals],[Current Period]]/一般及行政支出[[#Totals],[Prior Period]]-1,0) -> 0 | J38: =IFERROR(一般及行政支出[[#Totals],[Current Period]]/一般及行政支出[[#Totals],[Budget]]-1,0) -> -8.9%
B40: 经营支出: 其它
B41: 其它经营支出 1 | E41: 100 | H41: =IFERROR(其他经营支出类别[[#This Row],[Current Period]]/SUBTOTAL(109,销售收入[Current Period]),0) -> 0 | I41: =IFERROR(其他经营支出类别[[#This Row],[Current Period]]/其他经营支出类别[[#This Row],[Prior Period]]-1,0) -> 0 | J41: =IFERROR(其他经营支出类别[[#This Row],[Current Period]]/其他经营支出类别[[#This Row],[Budget]]-1,0) -> -100.0%
B42: 其它经营支出 2 | H42: =IFERROR(其他经营支出类别[[#This Row],[Current Period]]/SUBTOTAL(109,销售收入[Current Period]),0) -> 0 | I42: =IFERROR(其他经营支出类别[[#This Row],[Current Period]]/其他经营支出类别[[#This Row],[Prior Period]]-1,0) -> 0 | J42: =IFERROR(其他经营支出类别[[#This Row],[Current Period]]/其他经营支出类别[[#This Row],[Budget]]-1,0) -> 0
B43: 总计 | D43: =SUBTOTAL(109,其他经营支出类别[Prior Period]) -> 0 | E43: =SUBTOTAL(109,其他经营支出类别[Budget]) -> 100 | F43: =SUBTOTAL(109,其他经营支出类别[Current Period]) -> 0 | H43: =IFERROR(其他经营支出类别[[#Totals],[Current Period]]/SUBTOTAL(109,销售收入[Current Period]),0) -> 0 | I43: =IFERROR(其他经营支出类别[[#Totals],[Current Period]]/其他经营支出类别[[#Totals],[Prior Period]]-1,0) -> 0 | J43: =IFERROR(其他经营支出类别[[#Totals],[Current Period]]/其他经营支出类别[[#Totals],[Budget]]-1,0) -> -100.0%
B45: 经营支出总计 | D45: =SUM(销售和营销[Prior Period],一般及行政支出[Prior Period],其他经营支出类别[Prior Period]) -> 0 | E45: =SUM(销售和营销[Budget],一般及行政支出[Budget],其他经营支出类别[Budget]) -> 880 | F45: =SUM(销售和营销[Current Period],一般及行政支出[Current Period],其他经营支出类别[Current Period]) -> 700 | H45: =IFERROR(F45/SUBTOTAL(109,销售收入[Current Period]),0) -> 155.6% | I45: =IFERROR(F45/D45-1,0) -> 0 | J45: =IFERROR(F45/E45-1,0) -> -20.5%
B47: 经营收入 | D47: =D18-D45 -> 400 | E47: =E18-E45 -> -450 | F47: =F18-F45 -> -320 | H47: =IFERROR(F47/SUBTOTAL(109,销售收入[Current Period]),0) -> -71.1% | I47: =IFERROR(IF(D47=F47,0,IF(F47>D47,ABS((F47/D47)-1),IF(AND(F47<D47,D47<0),-((F47/D47)-1),(F47/D47)-1))),0) -> -180.0% | J47: =IFERROR(IF(E47=F47,0,IF(F47>E47,ABS((F47/E47)-1),IF(AND(F47<E47,E47<0),-((F47/E47)-1),(F47/E47)-1))),0) -> 28.9%
B49: 其他收入 | H49: =IFERROR(F49/SUBTOTAL(109,销售收入[Current Period]),0) -> 0 | I49: =IFERROR(F49/D49-1,0) -> 0 | J49: =IFERROR(F49/E49-1,0) -> 0
B51: 税款
B52: 所得税 | E52: 320 | F52: 300 | H52: =IFERROR(税款[[#This Row],[Current Period]]/SUBTOTAL(109,销售收入[Current Period]),0) -> 66.7% | I52: =IFERROR(税款[[#This Row],[Current Period]]/税款[[#This Row],[Prior Period]]-1,0) -> 0 | J52: =IFERROR(税款[[#This Row],[Current Period]]/税款[[#This Row],[Budget]]-1,0) -> -6.3%
B53: 工薪税 | H53: =IFERROR(税款[[#This Row],[Current Period]]/SUBTOTAL(109,销售收入[Current Period]),0) -> 0 | I53: =IFERROR(税款[[#This Row],[Current Period]]/税款[[#This Row],[Prior Period]]-1,0) -> 0 | J53: =IFERROR(税款[[#This Row],[Current Period]]/税款[[#This Row],[Budget]]-1,0) -> 0
B54: 房地产税 | H54: =IFERROR(税款[[#This Row],[Current Period]]/SUBTOTAL(109,销售收入[Current Period]),0) -> 0 | I54: =IFERROR(税款[[#This Row],[Current Period]]/税款[[#This Row],[Prior Period]]-1,0) -> 0 | J54: =IFERROR(税款[[#This Row],[Current Period]]/税款[[#This Row],[Budget]]-1,0) -> 0
B55: 其他税（指明） | H55: =IFERROR(税款[[#This Row],[Current Period]]/SUBTOTAL(109,销售收入[Current Period]),0) -> 0 | I55: =IFERROR(税款[[#This Row],[Current Period]]/税款[[#This Row],[Prior Period]]-1,0) -> 0 | J55: =IFERROR(税款[[#This Row],[Current Period]]/税款[[#This Row],[Budget]]-1,0) -> 0
B56: 总计 | D56: =SUBTOTAL(109,税款[Prior Period]) -> 0 | E56: =SUBTOTAL(109,税款[Budget]) -> 320 | F56: =SUBTOTAL(109,税款[Current Period]) -> 300 | H56: =IFERROR(税款[[#Totals],[Current Period]]/SUBTOTAL(109,销售收入[Current Period]),0) -> 66.7% | I56: =IFERROR(税款[[#Totals],[Current Period]]/税款[[#Totals],[Prior Period]]-1,0) -> 0 | J56: =IFERROR(税款[[#Totals],[Current Period]]/税款[[#Totals],[Budget]]-1,0) -> -6.3%
B58: 净利润 | D58: =D47+D49-税款[[#Totals],[Prior Period]] -> 400 | E58: =E47+E49-税款[[#Totals],[Prior Period]] -> -450 | F58: =F47+F49-税款[[#Totals],[Prior Period]] -> -320 | H58: =IFERROR(F58/SUBTOTAL(109,销售收入[Current Period]),0) -> -71.1% | I58: =IFERROR(IF(D58=F58,0,IF(F58>D58,ABS((F58/D58)-1),IF(AND(F58<D58,D58<0),-((F58/D58)-1),(F58/D58)-1))),0) -> -180.0% | J58: =IFERROR(IF(E58=F58,0,IF(F58>E58,ABS((F58/E58)-1),IF(AND(F58<E58,E58<0),-((F58/E58)-1),(F58/E58)-1))),0) -> 28.9%
B59: 总利润 | D59: =D18/SUM(销售收入[Prior Period]) -> 100.0% | E59: =E18/SUM(销售收入[Budget]) -> 86.0% | F59: =F18/SUM(销售收入[Current Period]) -> 84.4%
B60: 销售利润 | D60: =D58/SUM(销售收入[Prior Period]) -> 100.0% | E60: =E58/SUM(销售收入[Budget]) -> -90.0% | F60: =F58/SUM(销售收入[Current Period]) -> -71.1%
